fUSD/lending_fUSD_20240331
["ID","MTS","AMOUNT","RATE_DAILY","PERIOD"]
[321068088,1711861834509,-500.0,0.00041095,4]
[321068089,1711861834518,-1876.62,0.00041095,4]
[321068090,1711861834527,-631.66,0.00041095,4]
[321068091,1711861834537,-500.0,0.00041095,4]
[321068092,1711861834546,-1348.33,0.00041095,4]
[321068093,1711861834555,-1000.37,0.00041095,4]
[321068094,1711861834564,-560.8501582,0.00041095,4]
[321068095,1711861834573,-706.77,0.00041095,4]
[321068096,1711861834582,-500.0,0.00041095,4]
[321068097,1711861834592,-1246.44,0.00041095,4]
[321068098,1711861834601,-555.14901083,0.00041095,4]
[321068099,1711861834610,-500.0,0.00041095,4]
[321068100,1711861834619,-517.73087652,0.00041095,4]
[321068101,1711861834628,-586.31747985,0.00041095,4]
[321068102,1711861834637,-500.0,0.00041095,4]
[321068103,1711861834646,-714.81,0.00041095,4]
[321068104,1711861834656,-538.36,0.00041095,4]
[321068105,1711861834666,-500.0,0.00041095,4]
[321068106,1711861834675,-2252.41,0.00041095,4]
[321068107,1711861834684,-521.00460948,0.00041095,4]
[321068108,1711861834693,-510.88,0.00041095,4]
[321068109,1711861834702,-500.0,0.00041095,4]
[321068110,1711861834711,-500.0,0.00041095,4]
[321068111,1711861834720,-507.75151255,0.00041095,4]
[321068112,1711861834729,-570.2968708,0.00041095,4]
[321068113,1711861834738,-728.52,0.00041095,4]
[321068114,1711861834747,-173.65797931,0.00041095,4]
[321068115,1711861834756,-529.41532873,0.00041095,4]
[321068116,1711861834765,-2201.92,0.00041095,4]
[321068117,1711861834774,-500.0,0.00041095,4]
[321068118,1711861834783,-500.0,0.00041095,4]
[321068119,1711861834792,-533.56370363,0.00041095,4]
[321068120,1711861834801,-569.3,0.00041095,4]
[321068121,1711861834810,-500.0,0.00041095,4]
[321068122,1711861834818,-540.77,0.00041095,4]
[321068123,1711861834827,-500.0,0.00041095,4]
[321068124,1711861834836,-1142.72,0.00041095,4]
[321068125,1711861834845,-500.0,0.00041095,4]
[321068126,1711861834855,-500.0,0.00041095,4]
[321068127,1711861834864,-514.90427477,0.00041095,4]
[321068128,1711861834873,-530.76346874,0.00041095,4]
[321068129,1711861834882,-565.1,0.00041095,4]
[321068130,1711861834891,-500.0,0.00041095,4]
[321068131,1711861834901,-2457.11,0.00041095,4]
[321068132,1711861834910,-518.79714883,0.00041095,4]
[321068133,1711861834920,-500.0,0.00041095,4]
[321068134,1711861834930,-1799.98,0.00041095,4]
[321068135,1711861834944,-500.0,0.00041095,4]
[321068136,1711861834953,-500.0,0.00041095,4]
[321068137,1711861834962,-3403.21,0.00041095,4]
[321068138,1711861834972,-500.0,0.00041095,4]
[321068139,1711861834981,-1517.28,0.00041095,4]
[321068140,1711861834990,-500.0,0.00041095,4]
[321068141,1711861834999,-500.0,0.00041095,4]
[321068142,1711861835009,-500.0,0.00041095,4]
[321068143,1711861835019,-506.57453027,0.00041095,4]
[321068144,1711861835029,-500.0,0.00041095,4]
[321068145,1711861835039,-500.0,0.00041095,4]
[321068146,1711861835048,-500.0,0.00041095,4]
[321068147,1711861835057,-7267.66,0.00041095,4]
[321068148,1711861835067,-500.0,0.00041095,4]
[321068149,1711861835077,-500.0,0.00041095,4]
[321068150,1711861835087,-500.0,0.00041095,2]
[321068151,1711861835096,-500.0,0.00041095,4]
[321068152,1711861835106,-3228.74,0.00041095,4]
[321068153,1711861835116,-500.0,0.00041095,4]
[321068154,1711861835125,-673.67,0.00041095,4]
[321068155,1711861835134,-1950.94,0.00041095,4]
[321068156,1711861835144,-500.0,0.00041095,4]
[321068157,1711861835154,-504.85,0.00041095,4]
[321068158,1711861835163,-500.0,0.00041095,4]
[321068159,1711861835173,-500.0,0.00041095,4]
[321068160,1711861835182,-876.75,0.00041095,4]
[321068161,1711861835192,-1450.41,0.00041095,4]
[321068162,1711861835202,-12341.67930703,0.00041114,2]
[321068163,1711861835212,-4600.10939733,0.00041121,2]
[321068164,1711861835221,-1272.32809472,0.00041183,2]
[321068165,1711861835231,-170.78414156,0.00041203,10]
[321068166,1711861835240,-152.181762,0.00041276,30]
[321068167,1711861835249,-157.23827498,0.00041317,30]
[321068168,1711861835259,-151.22,0.00041359,2]
[321068169,1711861835268,-150.8,0.00041359,2]
[321068170,1711861835277,-150.8,0.00041359,2]
[321068171,1711861835287,-150.8,0.00041359,2]
[321068172,1711861835296,-500.0,0.00041368,4]
[321068173,1711861835305,-10.84528187,0.00041369,4]
[321068174,1711861835353,-489.15471813,0.00041369,4]
[321068175,1711861835362,-480.30180724,0.00041369,4]
[321068176,1711861835374,-11.35819276,0.00041369,4]
[321068177,1711861835385,-500.0,0.00041369,4]
[321068178,1711861835394,-500.0,0.00041369,4]
[321068179,1711861835404,-1074.47,0.00041369,4]
[321068180,1711861835413,-500.0,0.00041369,4]
[321068181,1711861835423,-500.0,0.00041369,4]
[321068182,1711861835432,-282.1026864,0.00041369,4]
[321068183,1711861835444,-217.8973136,0.00041369,4]
[321068184,1711861835455,-500.0,0.00041369,4]
[321068185,1711861835465,-201.42584443,0.00041369,4]
[321068186,1711861835487,-298.57415557,0.00041369,4]
[321068187,1711861835497,-455.08905946,0.00041369,4]
[321068188,1711861835509,-950.41094054,0.00041369,4]
[321068189,1711861835519,-500.0,0.00041369,4]
[321068190,1711861835530,-500.0,0.00041369,4]
[321068191,1711861835541,-500.0,0.00041369,4]
[321068192,1711861835551,-396.19716703,0.00041369,4]
[321068193,1711861835563,-103.80283297,0.00041369,4]
[321068194,1711861835574,-500.0,0.00041369,4]
[321068195,1711861835583,-229.69928005,0.00041369,4]
[321068196,1711861835595,-270.30071995,0.00041369,4]
[321068197,1711861835605,-269.38948113,0.00041369,4]
[321068201,1711861837630,-150.1,0.00040077,2]
[321068202,1711861837639,-500.0,0.00041095,4]
[321068203,1711861837649,-500.0,0.00041095,4]
[321068204,1711861837658,-219.6711003,0.00041369,4]
[321068205,1711861837686,-10.93941857,0.00041369,4]
[321068206,1711861837695,-433.03722432,0.00041369,4]
[321068207,1711861837743,-66.96277568,0.00041369,4]
[321068208,1711861837752,-416.51137209,0.00041369,4]
[321068209,1711861837761,-500.0,0.00041369,4]
[321068210,1711861837770,-202.36140407,0.00041369,4]
[321068211,1711861837800,-297.63859593,0.00041369,4]
[321068212,1711861837809,-517.95,0.00041369,4]
[321068213,1711861837818,-500.0,0.00041369,4]
[321068214,1711861837826,-500.0,0.00041369,4]
[321068215,1711861837835,-448.04607673,0.00041369,4]
[321068216,1711861837844,-500.0,0.00041369,4]
[321068217,1711861837853,-500.0,0.00041369,4]
[321068218,1711861837862,-500.0,0.00041369,4]
[321068219,1711861837871,-245.67,0.00041369,4]
[321068220,1711861837880,-500.0,0.00041369,4]
[321068221,1711861837889,-500.0,0.00041369,4]
[321068222,1711861837898,-500.0,0.00041369,4]
[321068223,1711861837907,-408.59655986,0.00041369,4]
[321068224,1711861837917,-500.0,0.00041369,4]
[321068225,1711861837926,-500.0,0.00041369,4]
[321068226,1711861837938,-500.0,0.00041369,4]
[321068227,1711861837947,-150.39,0.00041369,4]
[321068228,1711861837957,-500.0,0.00041369,4]
[321068229,1711861837966,-500.0,0.00041369,4]
[321068230,1711861837975,-500.0,0.00041369,4]
[321068231,1711861837985,-150.0,0.00041369,4]
[321068232,1711861837994,-500.0,0.00041369,4]
[321068233,1711861838003,-898.69,0.00041369,4]
[321068234,1711861838013,-500.0,0.00041369,4]
[321068235,1711861838022,-500.0,0.00041369,4]
[321068236,1711861838032,-500.0,0.00041369,4]
[321068237,1711861838041,-500.0,0.00041369,4]
[321068238,1711861838050,-500.0,0.00041369,4]
[321068239,1711861838059,-500.0,0.00041369,4]
[321068240,1711861838068,-540.95,0.00041369,2]
[321068241,1711861838077,-500.0,0.00041369,4]
[321068242,1711861838086,-500.0,0.00041369,4]
[321068243,1711861838095,-500.0,0.00041369,4]
[321068244,1711861838104,-274.41,0.00041369,4]
[321068245,1711861838113,-500.0,0.00041369,4]
[321068246,1711861838124,-229.93,0.00041369,4]
[321068247,1711861838134,-500.0,0.00041369,4]
[321068248,1711861838144,-500.0,0.00041369,4]
[321068249,1711861838307,-681.18,0.00041369,4]
[321068250,1711861838345,-500.0,0.00041369,4]
[321068251,1711861838354,-500.0,0.00041369,4]
[321068252,1711861838363,-500.0,0.00041369,4]
[321068253,1711861838372,-500.0,0.00041369,4]
[321068254,1711861838382,-502.94,0.00041369,4]
[321068255,1711861838391,-500.0,0.00041369,4]
[321068256,1711861838400,-500.0,0.00041369,4]
[321068257,1711861838409,-546.1,0.00041369,4]
[321068258,1711861838418,-500.0,0.00041369,4]
[321068259,1711861838427,-500.0,0.00041369,4]
[321068260,1711861838437,-1733.02,0.00041369,4]
[321068261,1711861838446,-500.0,0.00041369,4]
[321068262,1711861838456,-477.07142621,0.00041369,4]
[321068263,1711861838466,-500.0,0.00041369,4]
[321068264,1711861838475,-500.0,0.00041369,4]
[321068265,1711861838484,-500.0,0.00041369,4]
[321068266,1711861838493,-500.0,0.00041369,4]
[321068267,1711861838502,-500.0,0.00041369,4]
[321068268,1711861838511,-500.0,0.00041369,4]
[321068269,1711861838520,-1059.99,0.00041369,4]
[321068270,1711861838529,-500.0,0.00041369,4]
[321068271,1711861838538,-1460.14,0.00041369,4]
[321068272,1711861838549,-2033.45,0.00041369,4]
[321068273,1711861838558,-500.0,0.00041369,4]
[321068274,1711861838568,-500.0,0.00041369,4]
[321068275,1711861838577,-2461.47,0.00041369,4]
[321068276,1711861838586,-500.0,0.00041369,4]
[321068277,1711861838595,-500.0,0.00041369,4]
[321068278,1711861838604,-979.78,0.00041369,4]
[321068279,1711861838613,-500.0,0.00041369,4]
[321068280,1711861838623,-500.0,0.00041369,4]
[321068281,1711861838632,-232.56550023,0.00041369,4]
[321068282,1711861838642,-1334.34,0.00041369,4]
[321068283,1711861838653,-7343.55224104,0.00041369,4]
[321068284,1711861838681,-579.84038018,0.00041369,4]
[321068285,1711861838865,-22.09961982,0.00041369,4]
[321068286,1711861838875,-500.0,0.00041369,4]
[321068287,1711861838884,-500.0,0.00041369,4]
[321068288,1711861838893,-513.47,0.00041369,4]
[321068289,1711861838902,-500.0,0.00041369,4]
[321068290,1711861838911,-174.74735018,0.00041369,4]
[321068291,1711861839675,-500.0,0.00041095,4]
[321068292,1711861839685,-629.16264982,0.00041369,4]
[321068293,1711861839694,-3205.48,0.00041369,4]
[321068294,1711861839703,-500.0,0.00041369,4]
[321068295,1711861839712,-500.0,0.00041369,4]
[321068296,1711861839721,-500.0,0.00041369,4]
[321068297,1711861839730,-693.35735018,0.00041369,4]
[321068298,1711861839957,-355.04561023,0.00041369,4]
[321068300,1711861842846,-311.7686698,0.00041095,4]
[321068301,1711861842914,-188.2313302,0.00041095,4]
[321068302,1711861842922,-736.92,0.00041095,4]
[321068303,1711861842936,-971.66,0.00041095,4]
[321068304,1711861842945,-984.93,0.00041095,4]
[321068305,1711861842954,-284.57703959,0.00041369,4]
[321068306,1711861842964,-363.55206938,0.00041369,4]
[321068307,1711861842974,-500.0,0.00041369,4]
[321068308,1711861842983,-500.0,0.00041369,4]
[321068309,1711861842992,-35.37794033,0.00041369,4]
[321068310,1711861843004,-464.62205967,0.00041369,4]
[321068311,1711861843016,-1771.12,0.00041369,4]
[321068312,1711861843025,-500.0,0.00041369,4]
[321068313,1711861843034,-3918.38154729,0.00041369,4]
[321068314,1711861843045,-2471.70881146,0.00041369,4]
[321068315,1711861843056,-172.60964125,0.00041369,4]
[321068316,1711861843065,-1140.16,0.00041369,4]
[321068317,1711861843074,-1620.63,0.00041369,4]
[321068318,1711861843083,-500.0,0.00041369,4]
[321068319,1711861843092,-500.0,0.00041369,4]
[321068320,1711861843103,-500.0,0.00041369,4]
[321068321,1711861843112,-500.0,0.00041369,4]
[321068322,1711861843121,-500.0,0.00041369,4]
[321068323,1711861843130,-1171.93,0.00041369,4]
[321068324,1711861843139,-500.0,0.00041369,4]
[321068325,1711861843149,-500.0,0.00041369,4]
[321068326,1711861843158,-500.0,0.00041369,4]
[321068327,1711861843167,-598.04957822,0.00041369,4]
[321068328,1711861843182,-931.45,0.00041369,4]
[321068329,1711861843194,-500.0,0.00041369,4]
[321068330,1711861843206,-500.0,0.00041369,4]
[321068331,1711861843219,-1025.69,0.00041369,4]
[321068332,1711861843230,-500.0,0.00041369,4]
[321068333,1711861843240,-500.0,0.00041369,4]
[321068334,1711861843252,-500.0,0.00041369,4]
[321068335,1711861843264,-500.0,0.00041369,4]
[321068336,1711861843275,-500.0,0.00041369,4]
[321068337,1711861843287,-793.2,0.00041369,4]
[321068338,1711861843301,-2044.18,0.00041369,4]
[321068339,1711861843313,-500.0,0.00041369,4]
[321068340,1711861843325,-500.0,0.00041369,4]
[321068341,1711861843337,-583.14,0.00041369,4]
[321068342,1711861843349,-500.0,0.00041369,4]
[321068343,1711861843360,-500.0,0.00041369,4]
[321068344,1711861843372,-500.0,0.00041369,4]
[321068345,1711861843384,-776.94,0.00041369,4]
[321068346,1711861843395,-931.37,0.00041369,4]
[321068347,1711861843407,-500.0,0.00041369,4]
[321068348,1711861843417,-726.79,0.00041369,4]
[321068349,1711861843429,-500.0,0.00041369,4]
[321068350,1711861843443,-522.47829207,0.00041369,4]
[321068351,1711861843455,-500.0,0.00041369,4]
[321068352,1711861843466,-2017.25,0.00041369,4]
[321068353,1711861843476,-676.17,0.00041369,4]
[321068354,1711861843486,-2400.15,0.00041369,4]
[321068356,1711861843500,-906.78,0.00041369,4]
[321068357,1711861843511,-533.66,0.00041369,4]
[321068358,1711861843523,-689.21,0.00041369,4]
[321068359,1711861843536,-728.01,0.00041369,4]
[321068360,1711861843547,-500.0,0.00041369,4]
[321068361,1711861843560,-546.15,0.00041369,4]
[321068362,1711861843572,-1390.12,0.00041369,4]
[321068363,1711861843582,-821.33,0.00041369,4]
[321068364,1711861843595,-500.0,0.00041369,4]
[321068365,1711861843607,-500.0,0.00041369,4]
[321068366,1711861843619,-500.0,0.00041369,4]
[321068367,1711861843631,-828.47,0.00041369,4]
[321068368,1711861843645,-500.0,0.00041369,4]
[321068369,1711861843658,-500.0,0.00041369,4]
[321068370,1711861843671,-1816.69,0.00041369,4]
[321068371,1711861843683,-500.0,0.00041369,4]
[321068372,1711861843695,-500.0,0.00041369,4]
[321068373,1711861843705,-1879.95,0.00041369,4]
[321068374,1711861843715,-500.0,0.00041369,4]
[321068375,1711861843726,-684.97,0.00041369,4]
[321068376,1711861843736,-2007.33,0.00041369,4]
[321068377,1711861843748,-500.0,0.00041369,4]
[321068378,1711861843760,-500.0,0.00041369,4]
[321068379,1711861843770,-500.0,0.00041369,4]
[321068380,1711861843781,-500.0,0.00041369,4]
[321068381,1711861843793,-500.0,0.00041369,4]
[321068382,1711861843805,-893.89,0.00041369,4]
[321068383,1711861843816,-657.24,0.00041369,4]
[321068384,1711861843826,-500.0,0.00041369,4]
[321068385,1711861843837,-500.0,0.00041369,4]
[321068386,1711861843847,-575.08,0.00041369,4]
[321068387,1711861843858,-500.0,0.00041369,4]
[321068388,1711861843869,-1876.62,0.00041369,4]
[321068389,1711861843882,-631.66,0.00041369,4]
[321068390,1711861843893,-351.11,0.00041369,4]
[321068391,1711861843905,-1348.33,0.00041369,4]
[321068392,1711861843916,-1000.37,0.00041369,4]
[321068393,1711861843928,-706.77,0.00041369,4]
[321068394,1711861843940,-500.0,0.00041369,4]
[321068395,1711861843952,-1246.44,0.00041369,4]
[321068396,1711861843966,-500.0,0.00041369,4]
[321068397,1711861843977,-500.0,0.00041369,4]
[321068398,1711861843988,-714.81,0.00041369,4]
[321068399,1711861844000,-500.0,0.00041369,4]
[321068400,1711861844011,-538.36,0.00041369,4]
[321068401,1711861844023,-2252.41,0.00041369,4]
[321068402,1711861844034,-510.88,0.00041369,4]
[321068403,1711861844045,-500.0,0.00041369,4]
[321068404,1711861844056,-500.0,0.00041369,4]
[321068405,1711861844068,-728.52,0.00041369,4]
[321068406,1711861844079,-2201.92,0.00041369,4]
[321068407,1711861844091,-500.0,0.00041369,4]
[321068408,1711861844102,-500.0,0.00041369,4]
[321068409,1711861844114,-569.3,0.00041369,4]
[321068410,1711861844126,-500.0,0.00041369,4]
[321068411,1711861844137,-540.77,0.00041369,4]
[321068412,1711861844148,-500.0,0.00041369,4]
[321068413,1711861844159,-1142.72,0.00041369,4]
[321068414,1711861844170,-500.0,0.00041369,4]
[321068415,1711861844182,-500.0,0.00041369,4]
[321068416,1711861844194,-565.1,0.00041369,4]
[321068417,1711861844205,-500.0,0.00041369,4]
[321068418,1711861844217,-2457.11,0.00041369,4]
[321068419,1711861844228,-500.0,0.00041369,4]
[321068420,1711861844239,-1799.98,0.00041369,4]
[321068421,1711861844251,-500.0,0.00041369,4]
[321068422,1711861844262,-500.0,0.00041369,4]
[321068423,1711861844273,-3403.21,0.00041369,4]
[321068424,1711861844284,-500.0,0.00041369,4]
[321068425,1711861844295,-1517.28,0.00041369,4]
[321068426,1711861844306,-500.0,0.00041369,4]
[321068427,1711861844316,-500.0,0.00041369,4]
[321068428,1711861844327,-500.0,0.00041369,4]
[321068429,1711861844338,-585.44096644,0.00041369,4]
[321068430,1711861844349,-562.77710054,0.00041369,4]
[321068431,1711861844359,-7267.66,0.00041369,4]
[321068432,1711861844370,-500.0,0.00041369,4]
[321068433,1711861844381,-409.48,0.00041369,4]
[321068434,1711861844392,-544.12324247,0.00041369,2]
[321068435,1711861844404,-500.0,0.00041369,4]
[321068436,1711861844415,-3228.74,0.00041369,4]
[321068437,1711861844425,-500.0,0.00041369,4]
[321068438,1711861844437,-673.67,0.00041369,4]
[321068439,1711861844448,-1950.94,0.00041369,4]
[321068440,1711861844459,-582.02037784,0.00041369,4]
[321068441,1711861844470,-504.85,0.00041369,4]
[321068442,1711861844481,-500.0,0.00041369,4]
[321068443,1711861844492,-500.0,0.00041369,4]
[321068444,1711861844503,-876.75,0.00041369,4]
[321068445,1711861844514,-1450.41,0.00041369,4]
[321068446,1711861844525,-500.0,0.00041369,4]
[321068447,1711861844536,-500.0,0.00041369,4]
[321068448,1711861844548,-500.0,0.00041369,4]
[321068449,1711861844560,-736.92,0.00041369,4]
[321068450,1711861844571,-500.0,0.00041369,4]
[321068451,1711861844582,-971.66,0.00041369,4]
[321068452,1711861844593,-984.93,0.00041369,4]
[321068453,1711861844605,-5300.0,0.000414,29]
[321068454,1711861844615,-293.60812,0.00041404,9]
[321068455,1711861844626,-419.746,0.00041405,2]
[321068456,1711861844637,-154.75429573,0.00041405,12]
[321068457,1711861844648,-158.65554271,0.00041477,30]
[321068458,1711861844660,-10022.77513726,0.0004149,120]
[321068459,1711861844671,-363.20270378,0.00041499,4]
[321068460,1711861844681,-190.62,0.00041499,4]
[321068461,1711861844692,-7148.25,0.00041499,2]
[321068462,1711861844703,-8736.75,0.00041499,2]
[321068463,1711861844715,-248375.67860405,0.000415,4]
[321068464,1711861844726,-152.181762,0.00041505,30]
[321068465,1711861844737,-800.0,0.00041579,20]
[321068466,1711861844748,-4956.05725604,0.00041599,2]
[321068467,1711861844768,-673.14206966,0.00041599,2]
[321068468,1711861844781,-4879.81355895,0.00041599,2]
[321068469,1711861844794,-3605.98680571,0.00041599,2]
[321068470,1711861844807,-3276.88308055,0.00041599,2]
[321068471,1711861844826,-782.95167936,0.00041599,2]
[321068486,1711861845701,-371.86973024,0.00041095,4]
[321068491,1711861845757,-128.13026976,0.00041095,4]
[321068492,1711861845767,-1986.41,0.00041368,2]
[321068493,1711861845776,-870.89274743,0.00041368,4]
[321068495,1711861845788,-339.80030741,0.00041368,4]
[321068497,1711861845799,-785.29483787,0.00041368,4]
[321068498,1711861845978,-320.33599279,0.00041368,4]
[321068499,1711861846034,-823.71275735,0.00041368,4]
[321068500,1711861846044,-56.87999565,0.00041369,4]
[321068560,1711863031991,-250.0,0.00033,3]
[321068561,1711863032002,-139.928,0.00035,3]
[321068562,1711863032099,-160.072,0.00035,3]
[321068563,1711863032110,-350.0,0.00037,3]
[321068564,1711863032121,-219.55,0.00037872,2]
[321068565,1711863032131,-3792.1528831,0.00039298,4]
[321068566,1711863032142,-2434.11161942,0.00039299,4]
[321068567,1711863032152,-645.14,0.0003971,2]
[321068568,1711863032162,-151.8,0.00039715,15]
[321068569,1711863032171,-1000.0,0.00039784,2]
[321068570,1711863032180,-150.0,0.00039899,4]
[321068571,1711863032189,-490.0,0.000399,7]
[321068572,1711863032198,-490.0,0.000399,5]
[321068573,1711863032207,-490.0,0.000399,4]
[321068574,1711863032217,-490.0,0.000399,4]
[321068575,1711863032225,-490.0,0.000399,3]
[321068576,1711863032235,-490.0,0.000399,2]
[321068577,1711863032245,-162.43,0.00039954,2]
[321068578,1711863032254,-219.55,0.00040135,2]
[321068579,1711863032263,-490.0,0.000408,2]
[321068580,1711863032272,-543.0,0.000408,4]
[321068581,1711863032282,-548.0,0.000409,2]
[321068582,1711863032293,-3220.07657814,0.000409,2]
[321068583,1711863032302,-155.59992333,0.000409,2]
[321068584,1711863032311,-170.78414156,0.000409,10]
[321068585,1711863032321,-8639.17551493,0.00040985,2]
[321068586,1711863032331,-163.82,0.0004099,2]
[321068587,1711863032341,-202.033114,0.00040993,10]
[321068588,1711863032352,-203.033114,0.00040994,11]
[321068589,1711863032362,-33906.145,0.00040995,2]
[321068590,1711863032373,-264.9337,0.00040995,2]
[321068591,1711863032382,-550.0,0.00041,4]
[321068592,1711863032392,-550.0,0.00041,7]
[321068593,1711863032401,-550.0,0.00041,2]
[321068594,1711863032411,-550.0,0.00041,3]
[321068595,1711863032421,-300270.57636717,0.00041,2]
[321068596,1711863032430,-14639.95,0.00041,30]
[321068597,1711863032440,-150.8,0.00041085,2]
[321068598,1711863032449,-1720.65331991,0.00041094,4]
[321068599,1711863032458,-500.0,0.00041095,4]
[321068600,1711863032467,-500.0,0.00041095,4]
[321068601,1711863032476,-515.83040322,0.00041095,4]
[321068602,1711863032486,-512.27330199,0.00041095,4]
[321068603,1711863032495,-500.0,0.00041095,4]
[321068604,1711863032504,-500.0,0.00041095,4]
[321068605,1711863032514,-402.04905584,0.00041095,4]
[321068606,1711863032523,-500.0,0.00041095,4]
[321068607,1711863032532,-500.0,0.00041095,4]
[321068608,1711863032541,-500.0,0.00041095,4]
[321068609,1711863032551,-500.0,0.00041095,4]
[321068610,1711863032560,-500.0,0.00041095,4]
[321068611,1711863032569,-1288.38,0.00041095,4]
[321068612,1711863032579,-500.0,0.00041095,4]
[321068613,1711863032588,-500.0,0.00041095,4]
[321068614,1711863032598,-500.0,0.00041095,4]
[321068615,1711863032607,-665.41,0.00041095,4]
[321068616,1711863032618,-500.0,0.00041095,4]
[321068617,1711863032628,-500.0,0.00041095,4]
[321068618,1711863032637,-500.0,0.00041095,4]
[321068619,1711863032646,-500.0,0.00041095,4]
[321068620,1711863032656,-500.0,0.00041095,4]
[321068621,1711863032666,-500.0,0.00041095,4]
[321068622,1711863032675,-500.0,0.00041095,4]
[321068623,1711863032684,-500.0,0.00041095,4]
[321068624,1711863032696,-500.0,0.00041095,4]
[321068625,1711863032707,-500.0,0.00041095,4]
[321068626,1711863032716,-500.0,0.00041095,4]
[321068627,1711863032726,-500.0,0.00041095,4]
[321068628,1711863032737,-500.0,0.00041095,4]
[321068629,1711863032747,-500.0,0.00041095,4]
[321068630,1711863032756,-500.0,0.00041095,4]
[321068631,1711863032765,-500.0,0.00041095,4]
[321068632,1711863032775,-539.61489521,0.00041095,4]
[321068633,1711863032785,-500.0,0.00041095,4]
[321068634,1711863032795,-500.0,0.00041095,4]
[321068635,1711863032805,-606.2100502,0.00041095,4]
[321068636,1711863032816,-500.0,0.00041095,4]
[321068637,1711863032825,-500.0,0.00041095,4]
[321068638,1711863032835,-500.0,0.00041095,4]
[321068639,1711863032844,-500.0,0.00041095,4]
[321068640,1711863032854,-500.0,0.00041095,4]
[321068641,1711863032863,-557.41601253,0.00041095,4]
[321068642,1711863032872,-588.88704426,0.00041095,4]
[321068643,1711863032881,-264.73479468,0.00041095,4]
[321068644,1711863032891,-500.0,0.00041095,4]
[321068645,1711863032901,-500.0,0.00041095,4]
[321068646,1711863032911,-548.72,0.00041095,4]
[321068647,1711863032920,-500.0,0.00041095,4]
[321068648,1711863032929,-500.0,0.00041095,4]
[321068649,1711863032938,-150.0,0.00041095,4]
[321068650,1711863032949,-500.0,0.00041095,4]
[321068651,1711863032959,-500.0,0.00041095,4]
[321068652,1711863032968,-500.0,0.00041095,4]
[321068653,1711863032977,-823.8,0.00041095,4]
[321068654,1711863032987,-500.0,0.00041095,4]
[321068655,1711863032997,-500.0,0.00041095,4]
[321068656,1711863033007,-518.39,0.00041095,4]
[321068657,1711863033016,-500.0,0.00041095,4]
[321068658,1711863033026,-500.0,0.00041095,4]
[321068659,1711863033036,-500.0,0.00041095,4]
[321068660,1711863033045,-500.0,0.00041095,4]
[321068661,1711863033055,-500.0,0.00041095,4]
[321068662,1711863033065,-500.0,0.00041095,4]
[321068663,1711863033075,-503.84891357,0.00041095,4]
[321068664,1711863033085,-500.0,0.00041095,4]
[321068665,1711863033094,-500.0,0.00041095,4]
[321068666,1711863033105,-500.0,0.00041095,4]
[321068667,1711863033114,-500.0,0.00041095,4]
[321068668,1711863033124,-500.0,0.00041095,4]
[321068669,1711863033133,-500.0,0.00041095,4]
[321068670,1711863033142,-500.0,0.00041095,4]
[321068671,1711863033152,-609.75,0.00041095,4]